[Event "Late-Titled-Tuesday-Blitz-June-18-2024"]
[Site "Chess.com"]
[Date "2024.06.18"]
[Round "1"]
[White "Korchmar_Vasiliy"]
[Black "N_I_Chess"]
[Result "1-0"]
[WhiteElo "2644"]
[BlackElo "2339"]
[TimeControl "180+1"]
[EndTime "14:05:50 PDT"]
[Termination "Korchmar_Vasiliy won by resignation"]

1. d4 {[%clk 0:02:59.6]} 1... Nf6 {[%clk 0:02:55.2]} 2. c4 {[%clk 0:02:59.8]}
2... e6 {[%clk 0:02:54.6]} 3. Nf3 {[%clk 0:02:59.3]} 3... Bb4+ {[%clk 0:02:53]}
4. Nbd2 {[%clk 0:02:57.5]} 4... O-O {[%clk 0:02:46.3]} 5. e3 {[%clk 0:02:57.5]}
5... d5 {[%clk 0:02:44]} 6. a3 {[%clk 0:02:55.8]} 6... Bd6 {[%clk 0:02:37]} 7.
c5 {[%clk 0:02:52.3]} 7... Be7 {[%clk 0:02:36.5]} 8. b4 {[%clk 0:02:52.8]} 8...
Re8 {[%clk 0:01:56.3]} 9. Bd3 {[%clk 0:02:43.4]} 9... c6 {[%clk 0:01:53.2]} 10.
O-O {[%clk 0:02:39.7]} 10... Nbd7 {[%clk 0:01:52.4]} 11. Bb2 {[%clk 0:02:30.6]}
11... b6 {[%clk 0:01:43.5]} 12. Qc2 {[%clk 0:02:12.7]} 12... Bb7 {[%clk
0:01:34]} 13. Ne5 {[%clk 0:02:10.9]} 13... h6 {[%clk 0:01:08.3]} 14. f4 {[%clk
0:02:10.6]} 14... a5 {[%clk 0:00:57.4]} 15. h3 {[%clk 0:02:00.9]} 15... b5
{[%clk 0:00:38.8]} 16. g4 {[%clk 0:01:59.8]} 16... Nxe5 {[%clk 0:00:20.5]} 17.
fxe5 {[%clk 0:01:58.3]} 17... Nd7 {[%clk 0:00:20.7]} 18. Bh7+ {[%clk 0:01:57.7]}
18... Kh8 {[%clk 0:00:13.8]} 19. Rxf7 {[%clk 0:01:57.2]} 19... Rf8 {[%clk
0:00:08.9]} 20. Raf1 {[%clk 0:01:56.6]} 20... Bg5 {[%clk 0:00:07.7]} 21. Qg6
{[%clk 0:01:45.3]} 21... Bxe3+ {[%clk 0:00:05.1]} 22. Kg2 {[%clk 0:01:45.8]}
22... Rg8 {[%clk 0:00:01.9]} 23. Bxg8 {[%clk 0:01:41.3]} 23... Qxg8 {[%clk
0:00:02.8]} 24. Rxd7 {[%clk 0:01:37.5]} 24... Bc8 {[%clk 0:00:03.1]} 25. Rxg7
{[%clk 0:01:24.5]} 25... Qxg7 {[%clk 0:00:02.6]} 26. Qe8+ {[%clk 0:01:25.1]}
26... Qg8 {[%clk 0:00:02.8]} 27. Rf8 {[%clk 0:01:25.4]} 27... Bd7 {[%clk
0:00:02.6]} 28. Rxg8+ {[%clk 0:01:25.1]} 1-0

[Event "Late-Titled-Tuesday-Blitz-June-18-2024"]
[Site "Chess.com"]
[Date "2024.06.18"]
[Round "1"]
[White "Mops_2004"]
[Black "Heliosis11"]
[Result "1-0"]
[WhiteElo "2815"]
[BlackElo "2462"]
[TimeControl "180+1"]
[EndTime "14:05:51 PDT"]
[Termination "Mops_2004 won by resignation"]

1. g3 {[%clk 0:02:58.4]} 1... d5 {[%clk 0:02:57.1]} 2. Nf3 {[%clk 0:02:57.4]}
2... Nf6 {[%clk 0:02:54.4]} 3. Bg2 {[%clk 0:02:57.3]} 3... c5 {[%clk 0:02:55.3]}
4. O-O {[%clk 0:02:56.8]} 4... Nc6 {[%clk 0:02:54.6]} 5. d4 {[%clk 0:02:57]}
5... cxd4 {[%clk 0:02:54.8]} 6. Nxd4 {[%clk 0:02:56.9]} 6... g6 {[%clk
0:02:50.1]} 7. c4 {[%clk 0:02:55.9]} 7... Bg7 {[%clk 0:02:46.5]} 8. cxd5 {[%clk
0:02:54.9]} 8... Nxd5 {[%clk 0:02:45.9]} 9. Nxc6 {[%clk 0:02:54.9]} 9... bxc6
{[%clk 0:02:46.8]} 10. Qc2 {[%clk 0:02:38.6]} 10... Bd7 {[%clk 0:02:44.4]} 11.
e4 {[%clk 0:02:28.7]} 11... Nf6 {[%clk 0:02:30.4]} 12. Rd1 {[%clk 0:02:24.8]}
12... O-O {[%clk 0:02:28.2]} 13. Nc3 {[%clk 0:02:25]} 13... Qc8 {[%clk
0:02:25.3]} 14. Bf4 {[%clk 0:02:11.6]} 14... Rd8 {[%clk 0:02:22.1]} 15. Rac1
{[%clk 0:02:03.5]} 15... Qb7 {[%clk 0:02:04.1]} 16. Na4 {[%clk 0:01:59.1]} 16...
Bg4 {[%clk 0:02:02.1]} 17. Rxd8+ {[%clk 0:01:54.2]} 17... Rxd8 {[%clk 0:02:02]}
18. h3 {[%clk 0:01:54.8]} 18... Be6 {[%clk 0:01:59.5]} 19. Nc5 {[%clk
0:01:52.2]} 19... Qc8 {[%clk 0:01:58.8]} 20. Kh2 {[%clk 0:01:40.6]} 20... h5
{[%clk 0:01:57.2]} 21. Bg5 {[%clk 0:01:33.7]} 21... Kh7 {[%clk 0:01:38.3]} 22.
b3 {[%clk 0:01:29]} 22... a5 {[%clk 0:01:32.4]} 23. Nxe6 {[%clk 0:01:26.9]}
23... Qxe6 {[%clk 0:01:30.5]} 24. Qxc6 {[%clk 0:01:27.4]} 24... Qxc6 {[%clk
0:01:26.4]} 25. Rxc6 {[%clk 0:01:27.1]} 25... Rd4 {[%clk 0:01:26.9]} 26. Be3
{[%clk 0:01:12.8]} 26... Rb4 {[%clk 0:01:26.1]} 27. Bc5 {[%clk 0:01:10.5]} 27...
Rb7 {[%clk 0:01:22.1]} 28. Ra6 {[%clk 0:01:06.6]} 28... Rc7 {[%clk 0:01:18.9]}
29. Rxa5 {[%clk 0:01:01.3]} 29... Nd7 {[%clk 0:01:13.2]} 30. Bxe7 {[%clk
0:00:57.9]} 30... Rc2 {[%clk 0:01:13.7]} 31. f4 {[%clk 0:00:50.7]} 31... Nb8
{[%clk 0:01:04.8]} 32. e5 {[%clk 0:00:42.2]} 32... Nc6 {[%clk 0:01:04.4]} 33.
Rc5 {[%clk 0:00:42.5]} 33... Nd4 {[%clk 0:01:02.6]} 34. Rxc2 {[%clk 0:00:41.7]}
34... Nxc2 {[%clk 0:01:03.5]} 35. Bd5 {[%clk 0:00:37.1]} 35... Ne3 {[%clk
0:01:02.4]} 36. Bxf7 {[%clk 0:00:36]} 1-0

[Event "Late-Titled-Tuesday-Blitz-June-18-2024"]
[Site "Chess.com"]
[Date "2024.06.18"]
[Round "1"]
[White "aranibos"]
[Black "scandalgod"]
[Result "0-1"]
[WhiteElo "2280"]
[BlackElo "2619"]
[TimeControl "180+1"]
[EndTime "14:05:53 PDT"]
[Termination "scandalgod won on time"]

1. Nf3 {[%clk 0:02:50.8]} 1... d5 {[%clk 0:02:57.1]} 2. d4 {[%clk 0:02:50.9]}
2... Nf6 {[%clk 0:02:52.1]} 3. Bg5 {[%clk 0:02:51]} 3... Ne4 {[%clk 0:02:51]} 4.
Bf4 {[%clk 0:02:50.3]} 4... e6 {[%clk 0:02:49.2]} 5. e3 {[%clk 0:02:50.2]} 5...
Nd7 {[%clk 0:02:49.1]} 6. Nbd2 {[%clk 0:02:47.5]} 6... Ndf6 {[%clk 0:02:49.1]}
7. Bd3 {[%clk 0:02:44.7]} 7... Bd6 {[%clk 0:02:49.2]} 8. Bg3 {[%clk 0:02:39.2]}
8... O-O {[%clk 0:02:47.4]} 9. c3 {[%clk 0:02:38.8]} 9... b6 {[%clk 0:02:47.4]}
10. Qc2 {[%clk 0:02:33.3]} 10... Bb7 {[%clk 0:02:46.7]} 11. Bh4 {[%clk
0:02:19.1]} 11... Be7 {[%clk 0:02:46.2]} 12. Bxf6 {[%clk 0:02:15.3]} 12... Nxf6
{[%clk 0:02:43.5]} 13. h4 {[%clk 0:02:15.6]} 13... c5 {[%clk 0:02:42.6]} 14. Ng5
{[%clk 0:02:14]} 14... h6 {[%clk 0:02:39.3]} 15. Nh7 {[%clk 0:02:10.5]} 15... c4
{[%clk 0:02:29.5]} 16. Nxf6+ {[%clk 0:02:08]} 16... Bxf6 {[%clk 0:02:29.3]} 17.
Be2 {[%clk 0:02:08.1]} 17... b5 {[%clk 0:02:25.4]} 18. e4 {[%clk 0:01:59.5]}
18... e5 {[%clk 0:02:21.3]} 19. dxe5 {[%clk 0:01:55]} 19... Bxe5 {[%clk
0:02:19.5]} 20. O-O-O {[%clk 0:01:55.6]} 20... Qb6 {[%clk 0:02:15.9]} 21. Rhf1
{[%clk 0:01:43.8]} 21... d4 {[%clk 0:02:10.6]} 22. cxd4 {[%clk 0:01:21.7]} 22...
Bxd4 {[%clk 0:02:09.6]} 23. f3 {[%clk 0:01:14]} 23... Rac8 {[%clk 0:02:08.8]}
24. Kb1 {[%clk 0:01:10.8]} 24... Rc7 {[%clk 0:01:59.2]} 25. Rc1 {[%clk
0:00:52.8]} 25... Rfc8 {[%clk 0:01:58]} 26. Qd1 {[%clk 0:00:16.6]} 26... a5
{[%clk 0:01:51.7]} 27. Ka1 {[%clk 0:00:15.3]} 27... a4 {[%clk 0:01:51.9]} 28. a3
{[%clk 0:00:12.3]} 28... c3 {[%clk 0:01:52]} 29. bxc3 {[%clk 0:00:10.9]} 29...
Rxc3 {[%clk 0:01:52]} 30. Rxc3 {[%clk 0:00:10.1]} 30... Rxc3 {[%clk 0:01:52]}
31. Ka2 {[%clk 0:00:10.5]} 31... Qe6+ {[%clk 0:01:49.7]} 32. Nc4 {[%clk
0:00:06.1]} 32... Rxc4 {[%clk 0:01:49.1]} 33. Bxc4 {[%clk 0:00:05.1]} 33...
Qxc4+ {[%clk 0:01:49.7]} 34. Kb1 {[%clk 0:00:05.3]} 34... b4 {[%clk 0:01:33.7]}
0-1

[Event "Late-Titled-Tuesday-Blitz-June-18-2024"]
[Site "Chess.com"]
[Date "2024.06.18"]
[Round "1"]
[White "Javokhir_Sindarov05"]
[Black "HowTo2Draw"]
[Result "1-0"]
[WhiteElo "3064"]
[BlackElo "2519"]
[TimeControl "180+1"]
[EndTime "14:05:56 PDT"]
[Termination "Javokhir_Sindarov05 won by resignation"]

1. e4 {[%clk 0:02:59.2]} 1... c6 {[%clk 0:02:58.8]} 2. d4 {[%clk 0:02:57.4]}
2... d5 {[%clk 0:02:57.5]} 3. f3 {[%clk 0:02:57.8]} 3... dxe4 {[%clk 0:02:51]}
4. fxe4 {[%clk 0:02:58.7]} 4... e5 {[%clk 0:02:51]} 5. Nf3 {[%clk 0:02:59.2]}
5... Bg4 {[%clk 0:02:47.3]} 6. c3 {[%clk 0:02:58.1]} 6... Nd7 {[%clk 0:02:41.6]}
7. Bc4 {[%clk 0:02:48.3]} 7... Ngf6 {[%clk 0:02:29.1]} 8. Qb3 {[%clk 0:02:47.8]}
8... Bh5 {[%clk 0:02:06.4]} 9. Ng5 {[%clk 0:02:10.3]} 9... Qe7 {[%clk
0:01:54.4]} 10. Qxb7 {[%clk 0:02:10.5]} 10... Rb8 {[%clk 0:01:46.2]} 11. Qxc6
{[%clk 0:02:10.3]} 11... exd4 {[%clk 0:01:38.5]} 12. cxd4 {[%clk 0:02:06.5]}
12... h6 {[%clk 0:01:35.7]} 13. Nf3 {[%clk 0:02:07]} 13... Qxe4+ {[%clk
0:01:34.3]} 14. Qxe4+ {[%clk 0:02:07.2]} 14... Nxe4 {[%clk 0:01:35.2]} 15. O-O
{[%clk 0:02:07.8]} 15... Be7 {[%clk 0:01:22.4]} 16. Re1 {[%clk 0:02:05]} 16...
Nd6 {[%clk 0:01:16.2]} 17. Bd3 {[%clk 0:01:59]} 17... Bxf3 {[%clk 0:01:13.1]}
18. gxf3 {[%clk 0:01:59.9]} 18... Kd8 {[%clk 0:01:11.5]} 19. Nd2 {[%clk
0:01:55.7]} 19... Bg5 {[%clk 0:01:06]} 20. Nb3 {[%clk 0:01:55.9]} 20... Bxc1
{[%clk 0:01:04.6]} 21. Raxc1 {[%clk 0:01:56.8]} 21... Re8 {[%clk 0:01:02.9]} 22.
Rxe8+ {[%clk 0:01:49.7]} 22... Kxe8 {[%clk 0:01:01.3]} 23. Rc7 {[%clk
0:01:45.6]} 23... a5 {[%clk 0:00:57]} 24. Ra7 {[%clk 0:01:42.6]} 24... Nb6
{[%clk 0:00:29.4]} 25. Ra6 {[%clk 0:01:11.9]} 25... a4 {[%clk 0:00:26.6]} 26.
Nc5 {[%clk 0:01:12]} 26... a3 {[%clk 0:00:25.2]} 27. b3 {[%clk 0:01:09.9]} 27...
Ke7 {[%clk 0:00:17.6]} 28. Rxa3 {[%clk 0:01:09.7]} 28... Nd5 {[%clk 0:00:15.5]}
29. Ra7+ {[%clk 0:01:09.8]} 29... Kf8 {[%clk 0:00:14.1]} 30. Nd7+ {[%clk
0:01:09.7]} 1-0

[Event "Late-Titled-Tuesday-Blitz-June-18-2024"]
[Site "Chess.com"]
[Date "2024.06.18"]
[Round "1"]
[White "Oleksandr_Bortnyk"]
[Black "topin8"]
[Result "1-0"]
[WhiteElo "3054"]
[BlackElo "2519"]
[TimeControl "180+1"]
[EndTime "14:05:56 PDT"]
[Termination "Oleksandr_Bortnyk won on time"]

1. e4 {[%clk 0:03:00.9]} 1... e5 {[%clk 0:02:59.5]} 2. Bc4 {[%clk 0:02:57]} 2...
Nf6 {[%clk 0:02:59.2]} 3. d3 {[%clk 0:02:51.3]} 3... Nc6 {[%clk 0:02:59.2]} 4.
Nc3 {[%clk 0:02:50.7]} 4... Bb4 {[%clk 0:02:58.2]} 5. Bd2 {[%clk 0:02:51]} 5...
O-O {[%clk 0:02:54.6]} 6. Nge2 {[%clk 0:02:49.2]} 6... Na5 {[%clk 0:02:48.6]} 7.
Bb3 {[%clk 0:02:45.3]} 7... Nxb3 {[%clk 0:02:44]} 8. axb3 {[%clk 0:02:46.2]}
8... d5 {[%clk 0:02:42.8]} 9. O-O {[%clk 0:02:41.6]} 9... dxe4 {[%clk 0:02:26]}
10. dxe4 {[%clk 0:02:33.7]} 10... a6 {[%clk 0:02:18.1]} 11. Bg5 {[%clk
0:02:29.5]} 11... Be7 {[%clk 0:01:54.7]} 12. Ng3 {[%clk 0:02:19.1]} 12... Qxd1
{[%clk 0:01:38.3]} 13. Rfxd1 {[%clk 0:02:20]} 13... c6 {[%clk 0:01:38.8]} 14.
Na4 {[%clk 0:02:06]} 14... Bg4 {[%clk 0:01:38]} 15. f3 {[%clk 0:02:05.2]} 15...
Be6 {[%clk 0:01:38.3]} 16. Bxf6 {[%clk 0:01:58.2]} 16... gxf6 {[%clk 0:01:38.3]}
17. Kf2 {[%clk 0:01:55.3]} 17... Rfd8 {[%clk 0:01:31.7]} 18. Ke2 {[%clk
0:01:54.9]} 18... Rxd1 {[%clk 0:01:27.3]} 19. Rxd1 {[%clk 0:01:55.8]} 19... Rd8
{[%clk 0:01:14.3]} 20. Rxd8+ {[%clk 0:01:52.7]} 20... Bxd8 {[%clk 0:01:15.2]}
21. Nc5 {[%clk 0:01:53]} 21... Bc8 {[%clk 0:01:15.5]} 22. Nf5 {[%clk 0:01:53.5]}
22... Bb6 {[%clk 0:00:56.6]} 23. b4 {[%clk 0:01:53]} 23... Bxf5 {[%clk
0:00:24.5]} 24. exf5 {[%clk 0:01:53.9]} 24... a5 {[%clk 0:00:25.1]} 25. Nd7
{[%clk 0:01:49.3]} 25... Bd8 {[%clk 0:00:20.5]} 26. bxa5 {[%clk 0:01:49.4]}
26... Bxa5 {[%clk 0:00:18]} 27. Nxf6+ {[%clk 0:01:48.5]} 27... Kg7 {[%clk
0:00:18.9]} 28. Ne8+ {[%clk 0:01:39.1]} 28... Kf8 {[%clk 0:00:16.6]} 29. Nd6
{[%clk 0:01:40]} 29... b5 {[%clk 0:00:11.9]} 30. Kd3 {[%clk 0:01:38.6]} 30...
Bc7 {[%clk 0:00:06.7]} 31. Ne4 {[%clk 0:01:38.1]} 31... Ke7 {[%clk 0:00:07.2]}
32. g4 {[%clk 0:01:38.7]} 32... f6 {[%clk 0:00:07.4]} 33. h4 {[%clk 0:01:38.9]}
33... h6 {[%clk 0:00:07.4]} 34. c4 {[%clk 0:01:38.1]} 34... Bb6 {[%clk
0:00:06.3]} 35. cxb5 {[%clk 0:01:37.9]} 35... cxb5 {[%clk 0:00:07.2]} 36. Nc3
{[%clk 0:01:38.7]} 36... Bf2 {[%clk 0:00:06.2]} 37. h5 {[%clk 0:01:35.1]} 37...
Bd4 {[%clk 0:00:06.3]} 38. b3 {[%clk 0:01:33.8]} 1-0

[Event "Late-Titled-Tuesday-Blitz-June-18-2024"]
[Site "Chess.com"]
[Date "2024.06.18"]
[Round "1"]
[White "Mikayel99"]
[Black "Tulipnoir"]
[Result "1-0"]
[WhiteElo "2657"]
[BlackElo "2353"]
[TimeControl "180+1"]
[EndTime "14:05:57 PDT"]
[Termination "Mikayel99 won on time"]

1. d4 {[%clk 0:03:00.9]} 1... Nf6 {[%clk 0:02:59.1]} 2. Nc3 {[%clk 0:03:01.4]}
2... d5 {[%clk 0:02:58.3]} 3. e4 {[%clk 0:03:02.1]} 3... dxe4 {[%clk 0:02:56]}
4. f3 {[%clk 0:03:02.3]} 4... exf3 {[%clk 0:02:54.4]} 5. Nxf3 {[%clk 0:03:03.2]}
5... Bg4 {[%clk 0:02:49.8]} 6. h3 {[%clk 0:03:03.5]} 6... Bh5 {[%clk 0:02:42.1]}
7. g4 {[%clk 0:03:02.9]} 7... Bg6 {[%clk 0:02:42.3]} 8. Ne5 {[%clk 0:03:03.2]}
8... Nbd7 {[%clk 0:02:35.6]} 9. Nxg6 {[%clk 0:02:55.1]} 9... hxg6 {[%clk
0:02:34.9]} 10. Bc4 {[%clk 0:02:53.7]} 10... e6 {[%clk 0:02:32]} 11. Be3 {[%clk
0:02:46.6]} 11... Nb6 {[%clk 0:02:31.2]} 12. Bb5+ {[%clk 0:02:46.5]} 12... c6
{[%clk 0:02:30.8]} 13. Bd3 {[%clk 0:02:47.2]} 13... Nbd5 {[%clk 0:02:29.5]} 14.
Bg5 {[%clk 0:02:44]} 14... Qa5 {[%clk 0:02:26]} 15. Bd2 {[%clk 0:02:40.2]} 15...
Nxc3 {[%clk 0:02:24.3]} 16. bxc3 {[%clk 0:02:39.7]} 16... Be7 {[%clk 0:02:15.6]}
17. Qf3 {[%clk 0:02:35.4]} 17... Qd5 {[%clk 0:01:58.5]} 18. O-O {[%clk
0:02:24.7]} 18... Qxf3 {[%clk 0:01:55.1]} 19. Rxf3 {[%clk 0:02:25.6]} 19... O-O
{[%clk 0:01:53.3]} 20. Rb1 {[%clk 0:02:23.2]} 20... b6 {[%clk 0:01:47.1]} 21. g5
{[%clk 0:02:20.4]} 21... Nd7 {[%clk 0:01:32.8]} 22. Ba6 {[%clk 0:02:14.4]} 22...
c5 {[%clk 0:01:29.8]} 23. Bf4 {[%clk 0:02:05.7]} 23... cxd4 {[%clk 0:01:22.4]}
24. cxd4 {[%clk 0:02:06.6]} 24... e5 {[%clk 0:00:48.7]} 25. dxe5 {[%clk
0:01:59.6]} 25... Nc5 {[%clk 0:00:48.1]} 26. Bc4 {[%clk 0:01:55.7]} 26... Rad8
{[%clk 0:00:45.5]} 27. Rbf1 {[%clk 0:01:50.9]} 27... Rd4 {[%clk 0:00:38.7]} 28.
Bb5 {[%clk 0:01:37.6]} 28... Ne6 {[%clk 0:00:35.5]} 29. h4 {[%clk 0:01:34.4]}
29... Bc5 {[%clk 0:00:21.4]} 30. Kg2 {[%clk 0:01:32.4]} 30... Rd5 {[%clk
0:00:11.7]} 31. Bc4 {[%clk 0:01:30.4]} 31... Rd4 {[%clk 0:00:10.8]} 32. Bb3
{[%clk 0:01:28.9]} 32... a5 {[%clk 0:00:03]} 33. Be3 {[%clk 0:01:26.3]} 1-0

[Event "Late-Titled-Tuesday-Blitz-June-18-2024"]
[Site "Chess.com"]
[Date "2024.06.18"]
[Round "1"]
[White "CFalcons8"]
[Black "Losingexperience"]
[Result "1-0"]
[WhiteElo "2442"]
[BlackElo "2741"]
[TimeControl "180+1"]
[EndTime "14:06:02 PDT"]
[Termination "CFalcons8 won by resignation"]

1. d4 {[%clk 0:03:00.9]} 1... Nf6 {[%clk 0:02:59.4]} 2. Nf3 {[%clk 0:02:57.5]}
2... g6 {[%clk 0:02:59.1]} 3. g3 {[%clk 0:02:54.1]} 3... Bg7 {[%clk 0:02:59.1]}
4. Bg2 {[%clk 0:02:54.8]} 4... O-O {[%clk 0:02:59.4]} 5. O-O {[%clk 0:02:55.3]}
5... d6 {[%clk 0:02:59.6]} 6. c4 {[%clk 0:02:55.3]} 6... Nbd7 {[%clk 0:02:59.5]}
7. b3 {[%clk 0:02:55.9]} 7... e5 {[%clk 0:02:58.9]} 8. dxe5 {[%clk 0:02:56.8]}
8... dxe5 {[%clk 0:02:56.2]} 9. Bb2 {[%clk 0:02:57.1]} 9... Qe7 {[%clk
0:02:50.1]} 10. Nc3 {[%clk 0:02:55.9]} 10... c6 {[%clk 0:02:49.2]} 11. Nd2
{[%clk 0:02:51.2]} 11... Nc5 {[%clk 0:02:37.7]} 12. b4 {[%clk 0:02:46]} 12...
Ne6 {[%clk 0:02:36.1]} 13. a3 {[%clk 0:02:45.6]} 13... Rd8 {[%clk 0:02:34.6]}
14. e3 {[%clk 0:02:42.9]} 14... a5 {[%clk 0:02:27.3]} 15. c5 {[%clk 0:02:15.4]}
15... axb4 {[%clk 0:02:17]} 16. axb4 {[%clk 0:02:16.3]} 16... Rxa1 {[%clk
0:02:17.3]} 17. Bxa1 {[%clk 0:02:17.2]} 17... Ng5 {[%clk 0:02:17.6]} 18. Qc2
{[%clk 0:02:13.5]} 18... Bh3 {[%clk 0:02:15.1]} 19. Nde4 {[%clk 0:01:54.8]}
19... Bf5 {[%clk 0:01:32.7]} 20. h4 {[%clk 0:01:38.2]} 20... Ngxe4 {[%clk
0:01:32]} 21. Nxe4 {[%clk 0:01:38.1]} 21... Qe6 {[%clk 0:01:11.8]} 22. Nxf6+
{[%clk 0:01:32]} 22... Bxf6 {[%clk 0:01:09.7]} 23. e4 {[%clk 0:01:23.6]} 23...
Bh3 {[%clk 0:01:09.4]} 24. Rd1 {[%clk 0:01:23.4]} 24... Rxd1+ {[%clk 0:01:04.8]}
25. Qxd1 {[%clk 0:01:24.3]} 25... Bxg2 {[%clk 0:01:05.2]} 26. Kxg2 {[%clk
0:01:25.2]} 26... Qc4 {[%clk 0:01:05.5]} 27. Qe1 {[%clk 0:01:25]} 27... h5
{[%clk 0:00:56.7]} 28. f3 {[%clk 0:01:21.7]} 28... Qa2+ {[%clk 0:00:54.1]} 29.
Kh3 {[%clk 0:01:18.7]} 29... Be7 {[%clk 0:00:46.8]} 30. Bc3 {[%clk 0:01:12]}
30... f6 {[%clk 0:00:45.6]} 31. Qd2 {[%clk 0:01:10.8]} 31... Kf7 {[%clk
0:00:42.8]} 32. Qxa2+ {[%clk 0:01:10.5]} 1-0

[Event "Late-Titled-Tuesday-Blitz-June-18-2024"]
[Site "Chess.com"]
[Date "2024.06.18"]
[Round "1"]
[White "betta2004"]
[Black "BardArtem"]
[Result "0-1"]
[WhiteElo "2479"]
[BlackElo "2856"]
[TimeControl "180+1"]
[EndTime "14:06:03 PDT"]
[Termination "BardArtem won by resignation"]

1. Nf3 {[%clk 0:02:50.3]} 1... d5 {[%clk 0:02:59.8]} 2. b3 {[%clk 0:02:49.6]}
2... Nf6 {[%clk 0:02:56.9]} 3. Bb2 {[%clk 0:02:46.4]} 3... Bf5 {[%clk
0:02:57.5]} 4. e3 {[%clk 0:02:42.1]} 4... e6 {[%clk 0:02:57.1]} 5. d4 {[%clk
0:02:40.9]} 5... Bd6 {[%clk 0:02:56.2]} 6. Nbd2 {[%clk 0:02:41.3]} 6... O-O
{[%clk 0:02:56]} 7. Ne5 {[%clk 0:02:38.7]} 7... c5 {[%clk 0:02:53.5]} 8. f4
{[%clk 0:02:38.5]} 8... Nc6 {[%clk 0:02:52.6]} 9. Be2 {[%clk 0:02:37.4]} 9...
Rc8 {[%clk 0:02:42.6]} 10. O-O {[%clk 0:02:31.4]} 10... cxd4 {[%clk 0:02:39.1]}
11. exd4 {[%clk 0:02:26.8]} 11... Nb4 {[%clk 0:02:39]} 12. c3 {[%clk 0:02:22.9]}
12... Nc2 {[%clk 0:02:39.1]} 13. g4 {[%clk 0:02:06.2]} 13... Ne3 {[%clk
0:02:34.9]} 14. Qe1 {[%clk 0:01:53]} 14... Nxf1 {[%clk 0:02:23.3]} 15. Qxf1
{[%clk 0:01:47.1]} 15... Bxe5 {[%clk 0:02:13.5]} 16. gxf5 {[%clk 0:01:41.4]}
16... Bd6 {[%clk 0:02:12]} 17. fxe6 {[%clk 0:01:41.8]} 17... fxe6 {[%clk
0:02:12.9]} 18. Re1 {[%clk 0:01:32]} 18... Qc7 {[%clk 0:02:09.4]} 19. Qh3 {[%clk
0:01:14.6]} 19... Bxf4 {[%clk 0:02:05.9]} 20. Qxe6+ {[%clk 0:01:09.8]} 20... Kh8
{[%clk 0:02:06.1]} 21. Nf3 {[%clk 0:01:09.7]} 21... Rce8 {[%clk 0:02:04.9]} 22.
Qh3 {[%clk 0:01:10]} 22... Ne4 {[%clk 0:01:51.7]} 23. Bd3 {[%clk 0:00:59.2]}
23... Qb6 {[%clk 0:01:46.2]} 24. Qg2 {[%clk 0:00:35.4]} 24... Rf6 {[%clk
0:01:31.3]} 25. Kh1 {[%clk 0:00:28.2]} 25... Rg6 {[%clk 0:01:29.8]} 26. Qc2
{[%clk 0:00:27.2]} 26... Qe6 {[%clk 0:01:27.9]} 27. c4 {[%clk 0:00:22.6]} 27...
Qh3 {[%clk 0:01:08.3]} 28. Bxe4 {[%clk 0:00:08.7]} 28... Rxe4 {[%clk 0:01:08.5]}
29. Qf2 {[%clk 0:00:04.6]} 29... Qxf3+ {[%clk 0:01:07.8]} 0-1

[Event "Late-Titled-Tuesday-Blitz-June-18-2024"]
[Site "Chess.com"]
[Date "2024.06.18"]
[Round "1"]
[White "Supergiuly"]
[Black "Sondremelaa"]
[Result "0-1"]
[WhiteElo "2309"]
[BlackElo "2629"]
[TimeControl "180+1"]
[EndTime "14:06:03 PDT"]
[Termination "Sondremelaa won by checkmate"]

1. e4 {[%clk 0:02:49.4]} 1... e5 {[%clk 0:02:54.7]} 2. Nf3 {[%clk 0:02:43.1]}
2... Nc6 {[%clk 0:02:51.6]} 3. Bc4 {[%clk 0:02:42.2]} 3... Nf6 {[%clk
0:02:50.1]} 4. d3 {[%clk 0:02:41.1]} 4... Bc5 {[%clk 0:02:49.7]} 5. O-O {[%clk
0:02:38.5]} 5... a6 {[%clk 0:02:46.2]} 6. c3 {[%clk 0:02:33.6]} 6... d6 {[%clk
0:02:46.2]} 7. Bb3 {[%clk 0:02:32.8]} 7... Ba7 {[%clk 0:02:44.9]} 8. Nbd2 {[%clk
0:02:31.7]} 8... O-O {[%clk 0:02:44.7]} 9. Re1 {[%clk 0:02:27.6]} 9... Re8
{[%clk 0:02:42.2]} 10. Nf1 {[%clk 0:02:23.7]} 10... h6 {[%clk 0:02:42.5]} 11.
Ng3 {[%clk 0:02:21.9]} 11... Be6 {[%clk 0:02:43.1]} 12. d4 {[%clk 0:01:56.9]}
12... exd4 {[%clk 0:02:20.1]} 13. cxd4 {[%clk 0:01:55.3]} 13... Bg4 {[%clk
0:02:17.6]} 14. Be3 {[%clk 0:01:11]} 14... Nxe4 {[%clk 0:02:10.5]} 15. Nxe4
{[%clk 0:01:10.3]} 15... Rxe4 {[%clk 0:02:09.7]} 16. Qd3 {[%clk 0:01:08.9]}
16... Re8 {[%clk 0:01:44.9]} 17. Bc2 {[%clk 0:01:08]} 17... f5 {[%clk
0:01:34.6]} 18. h3 {[%clk 0:01:05.7]} 18... Bxf3 {[%clk 0:01:28]} 19. gxf3
{[%clk 0:01:06.6]} 19... Rf8 {[%clk 0:01:25.1]} 20. Qb3+ {[%clk 0:01:04.5]}
20... Kh8 {[%clk 0:01:21.5]} 21. Qxb7 {[%clk 0:01:04.3]} 21... Nxd4 {[%clk
0:01:17.5]} 22. Bd3 {[%clk 0:00:56.3]} 22... Bb6 {[%clk 0:01:00.6]} 23. Bxd4
{[%clk 0:00:51.5]} 23... Bxd4 {[%clk 0:01:01]} 24. Rac1 {[%clk 0:00:49.4]} 24...
Qg5+ {[%clk 0:00:53.2]} 25. Kf1 {[%clk 0:00:44.8]} 25... Qh4 {[%clk 0:00:47.1]}
26. Rc2 {[%clk 0:00:42.9]} 26... Qxh3+ {[%clk 0:00:46.3]} 27. Ke2 {[%clk
0:00:42.7]} 27... Rae8+ {[%clk 0:00:43.7]} 28. Kd2 {[%clk 0:00:42.4]} 28... Rxe1
{[%clk 0:00:39.8]} 29. Kxe1 {[%clk 0:00:40.6]} 29... Qh1+ {[%clk 0:00:38.9]} 30.
Ke2 {[%clk 0:00:40.3]} 30... Re8+ {[%clk 0:00:36.1]} 31. Kd2 {[%clk 0:00:38.8]}
31... Qe1# {[%clk 0:00:34.9]} 0-1